Cogmind - Beta 15 @@@ ROGUE MODE // 2025.06.09 @ 16:24:13 Player: EX-OCT Result: Destroyed by 6N-YYV(R) with Subdweller Shrapnel Launcher Performance ------------- Evolutions (0) 0 Regions Visited (2) 400 Robots Destroyed (28) 140 Value Destroyed (725) 725 Prototype IDs (0) 0 Alien Tech Used (0) 0 Bonus (0) 0 TOTAL SCORE: 1265 Bonus ------- None Cogmind --------- Core Integrity 0/250 Matter 258/300 Energy 250/250 System Corruption 0% Temperature Cool (0) Movement Rolling (120) Ox1 Location -10/Subcaves Parts ------- > --- POWER (1) -------- Ion Engine > --- PROPULSION (2) --- Light Treads Subdweller Monowheel > --- UTILITY (2) ------ Large Storage Unit Structural Scanner > --- WEAPON (2) ------- Light Cannon > --- INVENTORY (15) --- Light Ion Engine Subdweller Power Source Disposable Heat Sink Medium Matter Pod (100) Subdweller Optics Sensor Array Improved Terrain Scanner Targeting Computer Subdweller Machine Gun Subdweller Machine Gun Light Cannon Datajack Mining Laser Peak State ------------ > --- POWER ------------ Ion Engine > --- PROPULSION ------- Light Treads Light Treads > --- UTILITY ---------- Large Storage Unit Structural Scanner > --- WEAPON ----------- Battle Cannon Battle Cannon > --- INVENTORY -------- Ion Engine Light Ion Engine Subdweller Monowheel Disposable Heat Sink Medium Matter Pod Sensor Array Improved Terrain Scanner Targeting Computer Subdweller Machine Gun Subdweller Machine Gun Light Cannon Light Cannon Datajack Mining Laser [Rating: 11] Favorites ----------- Power Ion Engine Engine Ion Engine Propulsion Light Treads Treads Light Treads Wheel Subdweller Monowheel Utility Large Storage Unit Device Structural Scanner Storage Large Storage Unit Processor Signal Interpreter Weapon Light Cannon Ballistic Gun Light Assault Rifle Ballistic Cannon Light Cannon Special Weapon Mining Laser Build | -11 -10 -10 ------- Run | Yrd Mat Sub Slots Evolved . | . . . Power . | . . . Propulsion . | . . . Utility . | . . . Weapon . | . . . Parts Attached 22 | 8 9 5 Power 4 | 2 1 1 Engine 4 | 2 1 1 Core . | . . . Reactor . | . . . Propulsion 3 | 2 . 1 Treads 2 | 2 . . Leg . | . . . Wheel 1 | . . 1 Hover . | . . . Flight . | . . . Utility 6 | 2 4 . Device 3 | 1 2 . Storage 2 | 1 1 . Processor 1 | . 1 . Hackware . | . . . Protection . | . . . Artifact . | . . . Weapon 9 | 2 4 3 Energy Gun . | . . . Energy Cannon . | . . . Ballistic Gun 2 | 2 . . Ballistic Cannon 6 | . 3 3 Launcher . | . . . Special Weapon 1 | . 1 . Impact Weapon . | . . . Slashing Weapon . | . . . Piercing Weapon . | . . . Special Melee Weapon . | . . . Unidentified Prototypes . | . . . Parts Lost 4 | . . 4 Power 1 | . . 1 Propulsion 1 | . . 1 Utility . | . . . Weapon 2 | . . 2 Highest Loss Streak 3 | . . 3 To Critical Strikes 1 | . . 1 Average Backups 9 | . 7 13 Power 1 | . 1 2 Propulsion . | . . . Utility 3 | . 2 4 Weapon 2 | . 2 4 Tool/Special . | . . . Unused Backups 8 | . . 8 Power 1 | . . 1 Propulsion . | . . . Utility 4 | . . 4 Weapon 2 | . . 2 Tool/Special 1 | . . 1 Average Slot Usage (%) 99 | . 99 100 Engine 14 | . 14 14 Treads 27 | . 28 26 Device 11 | . 10 14 Storage 11 | . 10 14 Processor 4 | . 6 . Ballistic Gun 4 | . 7 . Ballistic Cannon 21 | . 17 27 Special Weapon 2 | . 2 . Peak Build Rating 11 | 9 9 11 Average Rating 8 | 5 7 10 On Entrance 5 | . 9 8 Naked Turns . | . . . Heaviest Build 32 | 14 32 32 Greatest Support 40 | 40 40 40 Greatest Overweight (x) 1 | . . 1 Average Overweight (x) . | . . . Largest Inventory Capacity 15 | 8 15 15 Average Capacity 12 | 7 11 15 Most Carried 15 | 1 10 15 Average Carried 9 | . 7 13 Final Capacity 15 | 8 15 15 Final Carried 13 | 1 10 13 Class Distribution -------------------- 100% | Mutant Dominant Class ---------------- Mutant | -10/Materials Mutant | -10/Subcaves Resources | -11 -10 -10 ----------- Run | Yrd Mat Sub Matter Collected 922 | 294 436 192 Remotely . | . . . Salvage Created 834 | 114 491 229 Parts 54 | 1 41 12 Haulers Intercepted . | . . . Recyclers Shooed . | . . . Parts Field Recycled . | . . . Retrieved Matter . | . . . Parts Self-Destructed 5 | . . 5 Prevented . | . . . Kills | -11 -10 -10 ------- Run | Yrd Mat Sub Combat Hostiles Destroyed 22 | . 15 7 Guns 4 | . 4 . Cannons 18 | . 11 7 Classes Destroyed 7 | 2 3 2 Tunneler 2 | 1 1 . Recycler 1 | 1 . . Watcher 3 | . 3 . Swarmer 7 | . 6 1 Grunt 9 | . 9 . Sentry 1 | . . 1 Subdweller 5 | . . 5 Best Kill Streak 3 | 2 3 3 Combat Bots Only 3 | . 3 3 Max Kills in Single Turn 2 | 1 2 2 Gunslinging . | . . . Exploded . | . . . Melee . | . . . Uniques/NPCs Destroyed . | . . . Combat | -11 -10 -10 -------- Run | Yrd Mat Sub Hostile Shots Fired 77 | . 40 37 Missed 22 | . 13 9 Hits 55 | . 27 28 Projectile 55 | . 27 28 AOE 2 | . . 2 Critical Strikes 3 | . 1 2 Damage Taken 1055 | . 365 690 Core 255 | . 136 119 Absorbed by Shields . | . . . Core Remaining (%) 100 | 100 . . Volleys Fired 70 | 6 43 21 Largest 2 | 2 2 2 Hottest 130 | 40 130 100 Shots Fired 132 | 12 79 41 Gun 44 | 12 32 . Cannon 78 | . 38 40 Launcher . | . . . Special 10 | . 9 1 Kinetic 122 | 12 70 40 Thermal 10 | . 9 1 Explosive . | . . . Electromagnetic . | . . . Robot Hit Streak 12 | 6 12 9 Robot Miss Streak 3 | 2 3 2 Penetration Max . | . . . Secondary Targets 1 | . 1 . Max Gunslinging Chain 1 | . 1 . Shots Hit Robots 75 | 8 40 27 Core Hits 40 | 5 24 11 Critical Kills . | . . . Critical Parts Destroyed 1 | 1 . . Critical Strikes 2 | 1 . 1 Destroy 1 | 1 . . Blast 1 | . . 1 Melee Attacks . | . . . Impact . | . . . Slashing . | . . . Piercing . | . . . Sneak Attacks . | . . . Combat Hostiles . | . . . Follow-up Attacks . | . . . Damage Inflicted 1202 | 88 606 508 Guns 293 | 88 205 . Cannons 909 | . 401 508 Explosions . | . . . Melee . | . . . Ramming . | . . . Kinetic 1202 | 88 606 508 Thermal . | . . . Explosive . | . . . Electromagnetic . | . . . Impact . | . . . Slashing . | . . . Piercing . | . . . Highest Corruption . | . . . Average Corruption . | . . . Corruption Purged . | . . . Corruption Blocked . | . . . Overload Shots . | . . . Overflow Damage 3 | . . 3 Projectiles 3 | . . 3 Explosions . | . . . Melee . | . . . Knockbacks 8 | . 4 4 Impact . | . . . Kinetic 8 | . 4 4 Secondary . | . . . Self-Inflicted Damage . | . . . Shots . | . . . Rammed . | . . . Targets Rammed . | . . . Kicked . | . . . Crushed . | . . . Highest Temperature 250 | . 82 250 Average Temperature 44 | . 27 137 Received Heat Transfer 536 | . 120 416 Effects 1 | . . 1 Energy Bleed 1 | . . 1 Siege Activations . | . . . Martial Activations . | . . . Shielding Activations . | . . . Robots Disrupted . | . . . Combat Hostiles . | . . . Robots Corrupted . | . . . Combat Hostiles . | . . . Parts Fried . | . . . Impact Corruptions . | . . . Robots Melted . | . . . Combat Hostiles . | . . . Parts Melted . | . . . Heat Transferred . | . . . Parts Sabotaged . | . . . Parts Stolen . | . . . Parts Stripped . | . . . Power Chain Reactions . | . . . Alert | -11 -10 -10 ------- Run | Yrd Mat Sub Maximum Alert Level . | . . . Low Security (%) 100 | 100 100 . Level 1 . | . . . Level 2 . | . . . Level 3 . | . . . Level 4 . | . . . Level 5 . | . . . High Security . | . . . Max Security . | . . . Peak Influence 145 | 5 145 . Initial . | . . . Average 60 | . 65 . Influence Increases 564 | 10 514 40 Destroy 0b10 Robot/C 340 | . 300 40 Destroy 0b10 Robot/NC 30 | 10 20 . Destroy Leader 76 | . 76 . Successful Hack 32 | . 32 . Select Force Hacks 60 | . 60 . Disable Machine 15 | . 15 . Destroy Structure 11 | . 11 . Influence Decreases 564 | 10 428 126 Entered New Map 42 | . . 42 Time Decay 522 | 10 428 84 Squads Dispatched 3 | . 3 . Investigation 3 | . 3 . Extermination . | . . . Reinforcement . | . . . Assault . | . . . Garrison . | . . . Intercept . | . . . Searches Triggered . | . . . Construction Impeded . | . . . Haulers Reinforced . | . . . Active Scanning Responses . | . . . Cargo Convoy Interrupts . | . . . Stealth | -11 -10 -10 --------- Run | Yrd Mat Sub Distress Signals 1 | . 1 . Communications Jammed . | . . . Distress Signals . | . . . Times Spotted 30 | . 21 9 Peak Tracking Total 3 | . 3 2 Tactical Retreats . | . . . Traps | -11 -10 -10 ------- Run | Yrd Mat Sub Traps Triggered 3 | . 3 . Indirectly . | . . . Trap Hack Attempts . | . . . Triggered . | . . . Disarmed . | . . . Reprogrammed . | . . . Reused . | . . . Traps Extracted . | . . . Installed . | . . . Triggered . | . . . Machines | -11 -10 -10 ---------- Run | Yrd Mat Sub Machines Disabled 1 | . 1 . Max in Single Turn 1 | . 1 . Machines Repaired . | . . . Machines Dismantled . | . . . Machines Sabotaged . | . . . Overloaded Fab Kills . | . . . Hacking | -11 -10 -10 --------- Run | Yrd Mat Sub Machines Accessed 11 | . 11 . Terminals 8 | . 8 . Fabricators . | . . . Repair Stations 1 | . 1 . Recycling Units 2 | . 2 . Scanalyzers . | . . . Garrison Access . | . . . Total Hacks 31 | . 31 . Successful 19 | . 19 . Failed 11 | . 11 . Catastrophic 2 | . 2 . Database Lockouts 1 | . 1 . Manual 21 | . 21 . Terminals 28 | . 28 . Fabricators . | . . . Repair Stations 1 | . 1 . Recycling Units 2 | . 2 . Scanalyzers . | . . . Garrison Access . | . . . Terminal Hacks 10 | . 10 . Robot Analysis 5 | . 5 . Terminal Index 1 | . 1 . Alert Level 1 | . 1 . Hauler Manifests 1 | . 1 . Zone Layout 2 | . 2 . Fabricator Hacks . | . . . Repair Station Hacks . | . . . Recycling Unit Hacks . | . . . Scanalyzer . | . . . Garrison Access Hacks . | . . . Unauthorized Hacks 9 | . 9 . Terminals 7 | . 7 . Botnet 7 | . 7 . Fabricators . | . . . Repair Stations . | . . . Recycling Units 2 | . 2 . Tunnel 2 | . 2 . Scanalyzers . | . . . Garrison Access . | . . . Data Cores Recovered . | . . . Used . | . . . Hacking Detections 9 | . 9 . Full Trace Events 1 | . 1 . Feedback Events . | . . . Feedback Blocked . | . . . Robot Schematics Acquired . | . . . Robots Built . | . . . Authchips . | . . . Time . | . . . Total Robot Build Rating . | . . . Part Schematics Acquired . | . . . Parts Built . | . . . Authchips . | . . . Time . | . . . Total Part Build Rating . | . . . Parts Repaired . | . . . Time . | . . . Parts Recycled . | . . . Recycled Matter . | . . . Retrieved Matter . | . . . Retrieved Components . | . . . Parts Scanalyzed . | . . . Part Schematics Acquired . | . . . Parts Damaged . | . . . Bothacking | -11 -10 -10 ------------ Run | Yrd Mat Sub Used RIF Installer . | . . . Robots Hacked . | . . . Non-combat . | . . . Combat . | . . . Robot Hacks Applied . | . . . Relay Couplers Released . | . . . Fabnet Peak Effective % . | . . . Robots Rewired . | . . . Allies Hacked . | . . . Hacks Repelled . | . . . Allies | -11 -10 -10 -------- Run | Yrd Mat Sub Total Allies . | . . . Largest Group . | . . . Highest-Rated Group . | . . . Highest-Rated Ally . | . . . Total Orders . | . . . Ally Attacks . | . . . Total Damage . | . . . Kills . | . . . Allies Corrupted . | . . . Allies Melted . | . . . Intel | -11 -10 -10 ------- Run | Yrd Mat Sub Active Infowar (turns) 1519 | 14 865 640 Sensors 375 | . 375 . Terrain 27 | 14 13 . Structural 1117 | . 477 640 Robot Analysis Total 5 | . 5 . Derelict Logs Recovered . | . . . Drone Launches . | . . . Drone Recoveries . | . . . Exploration | -11 -10 -10 ------------- Run | Yrd Mat Sub Turns Passed 1886 | 97 1149 640 Spaces Moved 1007 | 47 603 357 Core 5 | 5 . . Treads 962 | 42 603 317 Legs . | . . . Wheels 40 | . . 40 Hover . | . . . Flight . | . . . Fastest Speed 50 | 50 160 120 Average Speed 157 | 148 160 155 Slowest Speed 160 | 160 160 160 Overloaded Moves . | . . . Propulsion Burnouts . | . . . Robots Hopped . | . . . Potential Cave-ins . | . . . Cave-ins Triggered . | . . . Exploration Rate (%) 45 | 3 97 36 Regions Visited 2 Branch Regions 1 Pre-discovered Areas 3 | . 2 1 Known Exits Taken . | . . . Unknown Exits Taken 2 | 1 1 . Scrap Searched 3 | . . 3 Spaces Dug 9 | . 9 . Terrain Destroyed 10 | . 9 1 Melee . | . . . Projectile 10 | . 9 1 AOE . | . . . Terrain Rammed . | . . . Walls Destroyed . | . . . Machines Disabled . | . . . Actions | -11 -10 -10 --------- Run | Yrd Mat Sub Total 1149 | 60 691 398 Wait 26 | . 20 6 Move 1005 | 46 602 357 Hop . | . . . Pick Up 15 | . 9 6 Fast Attach 10 | 7 3 . Attach 3 | . . 3 Detach 2 | . 2 . Swap 13 | 1 8 4 Drop 5 | . 4 1 Fire 70 | 6 43 21 Melee . | . . . Ram . | . . . Kick . | . . . Crush . | . . . Escape Stasis . | . . . Rewire . | . . . Trap . | . . . Miscellaneous . | . . . Route ------- -11/Scrapyard -10/Materials (discovered 5 exits: *Mat x3 / [*Min] / [*Sub]) -10/Subcaves History --------- Turn | Location | Event 13 | -11/Scrapyard | Discovered new exit (range 16) 98 | -11/Scrapyard | Entered Materials 317 | -10/Materials | Build established: Mutant 333 | -10/Materials | Discovered new exit (range 8) 334 | -10/Materials | Central database locked down 342 | -10/Materials | Identified exit to Materials 465 | -10/Materials | Discovered exit to Materials (range 16) 550 | -10/Materials | Discovered new exit (range 7) 866 | -10/Materials | Discovered exit to Materials (range 3) 1110 | -10/Materials | Core integrity fell below 50% 1237 | -10/Materials | Discovered new exit (range 8) 1247 | -10/Materials | Entered Subcaves 1248 | -10/Subcaves | Approached by a straggling Scientist 1380 | -10/Subcaves | Learned location of Zion (-7) 1380 | -10/Subcaves | Met a Zionite searching for "candidates" 1855 | -10/Subcaves | Lost 3 parts (1p1n1w) 1882 | -10/Subcaves | Core integrity fell below 20% 1887 | -10/Subcaves | Destroyed by 6N-YYV(R) with Subdweller Shrapnel Launcher Last Messages --------------- 01810_ Critical hit (Destroy). 01810_ Battle Cannon destroyed. 01813_ Critical hit (Meltdown: +260). 01813_ HP-VJY(R) destroyed. 01817_ Overheating: Energy bleed (-50). 01820_ Ion Engine destroyed. 01822_ 24-I2M(R) knocked back. 01824_ Lgt. Treads destroyed. 01825_ 24-I2M(R) destroyed. 01831_ Acquired 29 matter. 01833_ Acquired 5 matter. 01834_ Acquired 3 matter. 01835_ Acquired 6 matter. 01836_ Acquired 8 matter. 01840_ Acquired 29 matter. 01842_ Acquired Sub. Optics. 4E-B3S(c): "I think it's somewhere northwest of here" 01885_ 6N-YYV(R) knocked back. 01887_ Battle Cannon destroyed. Map ----- +----------------------------------------------------+ | ?????????????????????????????????????????????????? | | ?????????????????????????????????????????????????? | | ?????????????????????????????????????????????????? | | ?????????????????????????????????????????????????? | | ?????????????????????????????????????????????????? | | ?????????????????????????????????????????????????? | | ?????????????????????????????????????????????????? | | ?????????????????????????????????????????????????? | | ?????????????????????????????????????????????????? | | ?????????????????????????????????????????????????? | | ?????????????????????????????????????????????????? | | ?????????????????????????????????????????????????? | | ?????????????????????????????? ???????????????? | | ?????????????????????????????? R###??????????????? | | ?????????????????????????????? #####????????????? | | ????????????????????????????? ;####????????????? | | ????????????????????????????? ;; ##????????????? | | ????????????????????????????; ;####???????????? | | ????????????????????????### ;; ###???????????? | | ???????????????????????##### % ##???????????? | | ??????????????????????#### ###???????????? | | ??????????????###########; R ;##????????????? | | ?????????????########### ; ;;##????????????? | | ???????????< ##< ###;; % ###????????????? | | ??????????? # ;; % ;# ##?????????????? | | ??????????? ##??? # @ ;# ##?????????????? | | ?????????????###? # ;# ###?????????????? | | ?????????????## ; c # ##??????????????? | | ?????????????####; ##??????????????? | | ?????????????### ; ;## ##??????????????? | | ??????????????###; ;### ## ###??????????????? | | ??????????????## ;; ?### ## ###??????????????? | | ??????????????### ;;;;?## ## ###?????????????? | | ??????????????#### ??### ## ###????????????? | | ???????????????########### ### ###???????????? | | ????????????????######### ### ##???????????? | | ????????????????#### """"### "##???????????? | | ????????????????### " ###? ###???????????? | | ????????????????## " #### ####???????????? | | ????????????????### " "## ###????????????? | | ????????????????#### """""##""##?????????????? | | ?????????????????#### "" "##"""#?????????????? | | ??????????????????##### "" #" ????????????????? | | ???????????????????#### "" ""##????????????????? | | ?###????????????????## """ "" ""????????????????? | | ? ##?????####???###### """""" "##??????????????? | | ? ##?################# "##### "##??????????????? | | ###?##### ####### # ######"""##??????????????? | | ###### ### =######" " ##??????????????? | | ###### &[ "####"" ###???????????????? | +----------------------------------------------------+ Best States ------------- Heat Dissipation 25 Energy Generation 10 Energy Capacity 250 Matter Stores 300 Matter Capacity 300 Sight Range 16 Robot Scan Range 14 Terrain Scan Range 16 Terrain Scan Density 10 Evasion (%) 40 Recoil Reduction 2 Item Schematics ----------------- None Robot Schematics ------------------ None Fabricated ------------ Nothing Repaired ---------- Nothing Alien Tech Used ----------------- None Achievements -------------- None Challenges ------------ None Game ------ Seed DeflectorAngularJammer Manual? 0 Play Time 00:15:31 Cumulative 223.7 hours Start 2025.06.09 @ 16:09:13 End 2025.06.09 @ 16:24:13 Sessions 1 Manual Loads 0 Difficulty Rogue Special Mode None Game No. 114 Rogue 114 Adventurer 0 Explorer 0 Win Type - Total 15 Types 6/0/5/1/2/1/0/0/0/0 Lore% 81 Gallery% 69 Achievement% 66 Wizard Run 0 Options --------- Layout 1 ASCII 0 Keyboard 0 Movement Numpad Keybinds 0 Fullscreen 1 Font 24/Smallcaps Map View 50x35 Zoom Use 0% Tactical HUD 1 Map Filters NONE Filters NONE Steam 1 RUN: c033858d-8a17-49fa-b280-596d1aec2256